[Event "Titled Tuesday Blitz June 21 Early 2022"]
[White "Boyer, Mahel"]
[Black "Namitbir Singh Walia"]
[WhiteFideId "45102422"]
[BlackFideId "35071068"]
[WhiteElo "2400"]
[BlackElo "1565"]
[Result "1-0"]
[Round "02"]
[TimeControl "180+1"]
[Date "2022.06.22"]
[WhiteClock "0:00:05"]
[BlackClock "0:00:54"]

1. d4 {[%clk 0:02:24]}  c5 {[%clk 0:02:56]} 2. dxc5 {[%clk 0:02:17]}  Nf6 {[%clk 0:02:53]} 3. a3 {[%clk 0:02:13]}  a5 {[%clk 0:02:53]} 4. Nc3 {[%clk 0:02:03]}  e6 {[%clk 0:02:35]} 5. e4 {[%clk 0:01:52]}  Bxc5 {[%clk 0:02:31]} 6. e5 {[%clk 0:01:52]}  Ng8 {[%clk 0:02:17]} 7. Ne4 {[%clk 0:01:43]}  Be7 {[%clk 0:02:10]} 8. Nd6+ {[%clk 0:01:34]}  Kf8 {[%clk 0:02:08]} 9. Be3 {[%clk 0:01:06]}  Nc6 {[%clk 0:02:01]} 10. f4 {[%clk 0:01:04]}  Nh6 {[%clk 0:01:49]} 11. Nf3 {[%clk 0:00:54]}  Nf5 {[%clk 0:01:44]} 12. Nxf5 {[%clk 0:00:46]}  exf5 {[%clk 0:01:45]} 13. Bc4 {[%clk 0:00:40]}  d6 {[%clk 0:01:41]} 14. exd6 {[%clk 0:00:28]}  Qxd6 {[%clk 0:01:42]} 15. Qxd6 {[%clk 0:00:23]}  Bxd6 {[%clk 0:01:43]} 16. O-O-O {[%clk 0:00:24]}  Be7 {[%clk 0:01:38]} 17. Bb6 {[%clk 0:00:14]}  Be6 {[%clk 0:01:36]} 18. Bxe6 {[%clk 0:00:09]}  fxe6 {[%clk 0:01:37]} 19. Rd7 {[%clk 0:00:10]}  Rb8 {[%clk 0:01:35]} 20. Re1 {[%clk 0:00:07]}  Ke8 {[%clk 0:01:33]} 21. Rc7 {[%clk 0:00:07]}  Nd8 {[%clk 0:01:14]} 22. Nd4 {[%clk 0:00:07]}  Bd6 {[%clk 0:01:04]} 23. Rxg7 {[%clk 0:00:07]}  Bxf4+ {[%clk 0:01:04]} 24. Kb1 {[%clk 0:00:07]}  e5 {[%clk 0:01:04]} 25. Nxf5 {[%clk 0:00:07]}  Nc6 {[%clk 0:01:01]} 26. g3 {[%clk 0:00:07]}  Bd2 {[%clk 0:00:59]} 27. Rd1 {[%clk 0:00:07]}  Rf8 {[%clk 0:00:54]} 28. Nd6# {[%clk 0:00:05]} 1-0


[Site "https://www.chess.com"]

[Event "Titled Tuesday Blitz June 21 Early 2022"]
[White "Cherniaiev, Tykhon"]
[Black "Kvaloy, Aksel Bu"]
[WhiteFideId "14182360"]
[BlackFideId "1528815"]
[WhiteElo "2726"]
[BlackElo "2354"]
[Result "1-0"]
[Round "02"]
[TimeControl "180+1"]
[Date "2022.06.22"]
[WhiteClock "0:00:38"]
[BlackClock "0:00:02"]

1. Nf3 {[%clk 0:03:00]}  c5 {[%clk 0:02:50]} 2. c4 {[%clk 0:03:00]}  Nc6 {[%clk 0:02:45]} 3. g3 {[%clk 0:03:00]}  d6 {[%clk 0:02:45]} 4. Bg2 {[%clk 0:03:01]}  g6 {[%clk 0:02:45]} 5. O-O {[%clk 0:03:01]}  Bg7 {[%clk 0:02:44]} 6. Nc3 {[%clk 0:03:01]}  e5 {[%clk 0:02:44]} 7. e3 {[%clk 0:03:01]}  Nge7 {[%clk 0:02:43]} 8. d4 {[%clk 0:03:01]}  exd4 {[%clk 0:02:36]} 9. exd4 {[%clk 0:03:02]}  cxd4 {[%clk 0:02:34]} 10. Nb5 {[%clk 0:03:02]}  O-O {[%clk 0:02:33]} 11. Nbxd4 {[%clk 0:03:02]}  Qb6 {[%clk 0:02:28]} 12. Nxc6 {[%clk 0:02:58]}  Nxc6 {[%clk 0:02:23]} 13. Qxd6 {[%clk 0:02:50]}  Rd8 {[%clk 0:02:18]} 14. Qf4 {[%clk 0:02:49]}  Be6 {[%clk 0:01:57]} 15. Be3 {[%clk 0:02:30]}  Qxb2 {[%clk 0:01:50]} 16. Rab1 {[%clk 0:02:29]}  Qc3 {[%clk 0:01:49]} 17. Rfc1 {[%clk 0:02:13]}  Qa3 {[%clk 0:01:19]} 18. Rxb7 {[%clk 0:02:01]}  Na5 {[%clk 0:01:18]} 19. Rbb1 {[%clk 0:01:51]}  Rac8 {[%clk 0:01:05]} 20. Ng5 {[%clk 0:01:35]}  Rxc4 {[%clk 0:00:42]} 21. Rxc4 {[%clk 0:01:30]}  Bxc4 {[%clk 0:00:43]} 22. Qc7 {[%clk 0:01:09]}  Qd3 {[%clk 0:00:35]} 23. Be4 {[%clk 0:00:56]}  Qxb1+ {[%clk 0:00:05]} 24. Bxb1 {[%clk 0:00:56]}  Rd1+ {[%clk 0:00:06]} 25. Kg2 {[%clk 0:00:56]}  Rxb1 {[%clk 0:00:06]} 26. Qxa5 {[%clk 0:00:47]}  h6 {[%clk 0:00:05]} 27. Qd8+ {[%clk 0:00:42]}  Bf8 {[%clk 0:00:05]} 28. Bc5 {[%clk 0:00:38]}  Bd5+ {[%clk 0:00:02]} 29. Qxd5 {[%clk 0:00:38]}  hxg5 {[%clk 0:00:02]} 30. Qd8 {[%clk 0:00:38]} 1-0


[Site "https://www.chess.com"]

[Event "Titled Tuesday Blitz June 21 Early 2022"]
[White "Coto Mederos, Michel"]
[Black "Tarasova, Viktoriya"]
[WhiteFideId "3508528"]
[BlackFideId "4175840"]
[WhiteElo "2427"]
[BlackElo "2182"]
[Result "1-0"]
[Round "02"]
[TimeControl "180+1"]
[Date "2022.06.22"]
[WhiteClock "0:00:52"]
[BlackClock "0:01:54"]

1. c4 {[%clk 0:03:00]}  Nf6 {[%clk 0:02:59]} 2. Nc3 {[%clk 0:02:56]}  e5 {[%clk 0:02:57]} 3. Nf3 {[%clk 0:02:56]}  Nc6 {[%clk 0:02:56]} 4. e4 {[%clk 0:02:54]}  Bb4 {[%clk 0:02:55]} 5. d3 {[%clk 0:02:53]}  d6 {[%clk 0:02:55]} 6. a3 {[%clk 0:02:51]}  Bxc3+ {[%clk 0:02:55]} 7. bxc3 {[%clk 0:02:52]}  O-O {[%clk 0:02:55]} 8. Be2 {[%clk 0:02:52]}  h6 {[%clk 0:02:55]} 9. O-O {[%clk 0:02:53]}  Bg4 {[%clk 0:02:56]} 10. Rb1 {[%clk 0:02:44]}  Bxf3 {[%clk 0:02:55]} 11. Bxf3 {[%clk 0:02:43]}  Rb8 {[%clk 0:02:55]} 12. Be2 {[%clk 0:02:36]}  Nd7 {[%clk 0:02:55]} 13. f4 {[%clk 0:02:35]}  exf4 {[%clk 0:02:53]} 14. Bxf4 {[%clk 0:02:34]}  Qe7 {[%clk 0:02:53]} 15. Qd2 {[%clk 0:02:27]}  Nde5 {[%clk 0:02:36]} 16. Kh1 {[%clk 0:01:56]}  Ng6 {[%clk 0:02:33]} 17. Be3 {[%clk 0:01:43]}  b6 {[%clk 0:02:28]} 18. Rf5 {[%clk 0:01:37]}  Qd7 {[%clk 0:02:25]} 19. Rbf1 {[%clk 0:01:32]}  Nce7 {[%clk 0:02:22]} 20. R5f2 {[%clk 0:01:29]}  Qa4 {[%clk 0:02:22]} 21. Qc1 {[%clk 0:01:14]}  a5 {[%clk 0:02:11]} 22. Rf3 {[%clk 0:01:12]}  Qd7 {[%clk 0:02:10]} 23. Rh3 {[%clk 0:01:12]}  Qe6 {[%clk 0:02:01]} 24. Bxh6 {[%clk 0:01:04]}  gxh6 {[%clk 0:02:01]} 25. Qxh6 {[%clk 0:01:03]}  Rfe8 {[%clk 0:01:54]} 26. Bg4 {[%clk 0:00:52]} 1-0


[Site "https://www.chess.com"]

[Event "Titled Tuesday Blitz June 21 Early 2022"]
[White "Curtis, John"]
[Black "Rodchenkov, Sergey D."]
[WhiteFideId "3200256"]
[BlackFideId "4168712"]
[WhiteElo "2203"]
[BlackElo "2293"]
[Result "1-0"]
[Round "02"]
[TimeControl "180+1"]
[Date "2022.06.22"]
[WhiteClock "0:00:10"]
[BlackClock "0:00:03"]

1. c4 {[%clk 0:03:00]}  e5 {[%clk 0:02:59]} 2. d3 {[%clk 0:02:56]}  Nc6 {[%clk 0:02:55]} 3. Nf3 {[%clk 0:02:56]}  g6 {[%clk 0:02:54]} 4. Nc3 {[%clk 0:02:47]}  Bg7 {[%clk 0:02:54]} 5. e3 {[%clk 0:02:46]}  Nge7 {[%clk 0:02:54]} 6. Be2 {[%clk 0:02:47]}  O-O {[%clk 0:02:55]} 7. a3 {[%clk 0:02:47]}  d5 {[%clk 0:02:56]} 8. cxd5 {[%clk 0:02:46]}  Nxd5 {[%clk 0:02:57]} 9. Bd2 {[%clk 0:02:45]}  Be6 {[%clk 0:02:54]} 10. Nxd5 {[%clk 0:02:42]}  Bxd5 {[%clk 0:02:55]} 11. Bc3 {[%clk 0:02:43]}  Qe7 {[%clk 0:02:40]} 12. e4 {[%clk 0:02:26]}  Be6 {[%clk 0:02:39]} 13. b4 {[%clk 0:02:26]}  a6 {[%clk 0:02:37]} 14. Qc2 {[%clk 0:02:26]}  Rad8 {[%clk 0:02:36]} 15. h3 {[%clk 0:02:18]}  f5 {[%clk 0:02:35]} 16. O-O {[%clk 0:02:10]}  f4 {[%clk 0:02:32]} 17. Qb2 {[%clk 0:01:59]}  Nd4 {[%clk 0:02:26]} 18. Bxd4 {[%clk 0:01:53]}  exd4 {[%clk 0:02:27]} 19. Rfc1 {[%clk 0:01:46]}  c6 {[%clk 0:02:11]} 20. Bd1 {[%clk 0:01:44]}  Kh8 {[%clk 0:02:10]} 21. Bb3 {[%clk 0:01:43]}  Bc8 {[%clk 0:02:10]} 22. Rc5 {[%clk 0:01:43]}  h6 {[%clk 0:02:03]} 23. a4 {[%clk 0:01:30]}  g5 {[%clk 0:01:58]} 24. a5 {[%clk 0:01:22]}  Bf6 {[%clk 0:01:37]} 25. e5 {[%clk 0:01:12]}  Bg7 {[%clk 0:01:37]} 26. Re1 {[%clk 0:01:10]}  Rf5 {[%clk 0:01:10]} 27. Nxd4 {[%clk 0:01:00]}  Rxe5 {[%clk 0:00:57]} 28. Rcxe5 {[%clk 0:01:00]}  Bxe5 {[%clk 0:00:57]} 29. Nxc6 {[%clk 0:00:48]}  Bxb2 {[%clk 0:00:53]} 30. Nxe7 {[%clk 0:00:48]}  Bd7 {[%clk 0:00:26]} 31. Bc4 {[%clk 0:00:18]}  Kg7 {[%clk 0:00:25]} 32. Nd5 {[%clk 0:00:15]}  Bc6 {[%clk 0:00:23]} 33. Nb6 {[%clk 0:00:07]}  Bf6 {[%clk 0:00:20]} 34. Re6 {[%clk 0:00:06]}  Rd4 {[%clk 0:00:17]} 35. Bxa6 {[%clk 0:00:04]}  Bd5 {[%clk 0:00:10]} 36. Nxd5 {[%clk 0:00:03]}  Rxd5 {[%clk 0:00:11]} 37. Bc4 {[%clk 0:00:02]}  Rd7 {[%clk 0:00:09]} 38. Rb6 {[%clk 0:00:02]}  f3 {[%clk 0:00:08]} 39. a6 {[%clk 0:00:03]}  bxa6 {[%clk 0:00:04]} 40. gxf3 {[%clk 0:00:02]}  a5 {[%clk 0:00:04]} 41. bxa5 {[%clk 0:00:02]}  Re7 {[%clk 0:00:05]} 42. a6 {[%clk 0:00:02]}  Re1+ {[%clk 0:00:06]} 43. Kg2 {[%clk 0:00:03]}  Ra1 {[%clk 0:00:07]} 44. Rb7+ {[%clk 0:00:03]}  Kg6 {[%clk 0:00:07]} 45. a7 {[%clk 0:00:04]}  Bd4 {[%clk 0:00:06]} 46. Bd5 {[%clk 0:00:05]}  Rxa7 {[%clk 0:00:05]} 47. Be4+ {[%clk 0:00:06]}  Kh5 {[%clk 0:00:05]} 48. Rb4 {[%clk 0:00:06]}  Bc5 {[%clk 0:00:04]} 49. Rb5 {[%clk 0:00:06]}  Bd4 {[%clk 0:00:04]} 50. Rd5 {[%clk 0:00:06]}  Bb6 {[%clk 0:00:04]} 51. Rd6 {[%clk 0:00:05]}  Bc7 {[%clk 0:00:03]} 52. Bg6+ {[%clk 0:00:05]}  Kh4 {[%clk 0:00:03]} 53. Rd4+ {[%clk 0:00:06]}  Bf4 {[%clk 0:00:03]} 54. Re4 {[%clk 0:00:07]}  Ra2 {[%clk 0:00:03]} 55. d4 {[%clk 0:00:07]}  Rd2 {[%clk 0:00:04]} 56. Bf7 {[%clk 0:00:07]}  h5 {[%clk 0:00:04]} 57. d5 {[%clk 0:00:07]}  Rc2 {[%clk 0:00:02]} 58. Be6 {[%clk 0:00:07]}  Rd2 {[%clk 0:00:02]} 59. Rc4 {[%clk 0:00:07]}  Rd1 {[%clk 0:00:02]} 60. Rc8 {[%clk 0:00:07]}  g4 {[%clk 0:00:03]} 61. Rh8 {[%clk 0:00:07]}  gxh3+ {[%clk 0:00:02]} 62. Bxh3 {[%clk 0:00:08]}  Rd2 {[%clk 0:00:02]} 63. Bg4 {[%clk 0:00:09]}  Kg5 {[%clk 0:00:02]} 64. Rxh5+ {[%clk 0:00:09]}  Kg6 {[%clk 0:00:03]} 65. Rf5 {[%clk 0:00:09]}  Be3 {[%clk 0:00:03]} 66. Re5 {[%clk 0:00:09]}  Rxf2+ {[%clk 0:00:03]} 67. Kg3 {[%clk 0:00:09]}  Bd4 {[%clk 0:00:04]} 68. Re4 {[%clk 0:00:09]}  Bc5 {[%clk 0:00:03]} 69. f4 {[%clk 0:00:09]}  Rc2 {[%clk 0:00:03]} 70. f5+ {[%clk 0:00:10]}  Kf6 {[%clk 0:00:03]} 71. Re6+ {[%clk 0:00:10]}  Kg5 {[%clk 0:00:03]} 72. Rg6# {[%clk 0:00:10]} 1-0


[Site "https://www.chess.com"]

[Event "Titled Tuesday Blitz June 21 Early 2022"]
[White "De Souza, Cristiano Gomes"]
[Black "Dobre, Claudiu-Cristian"]
[WhiteFideId "2151758"]
[BlackFideId "1211854"]
[WhiteElo "2068"]
[BlackElo "2207"]
[Result "0-1"]
[Round "02"]
[TimeControl "180+1"]
[Date "2022.06.22"]
[WhiteClock "0:00:13"]
[BlackClock "0:00:33"]

1. d4 {[%clk 0:03:00]}  d5 {[%clk 0:02:58]} 2. c4 {[%clk 0:03:00]}  c6 {[%clk 0:02:59]} 3. Nf3 {[%clk 0:03:00]}  Nf6 {[%clk 0:02:59]} 4. Nc3 {[%clk 0:02:59]}  e6 {[%clk 0:02:59]} 5. Bg5 {[%clk 0:02:58]}  Nbd7 {[%clk 0:02:59]} 6. Rc1 {[%clk 0:02:57]}  dxc4 {[%clk 0:02:41]} 7. e4 {[%clk 0:02:55]}  b5 {[%clk 0:02:41]} 8. e5 {[%clk 0:02:55]}  h6 {[%clk 0:02:42]} 9. Bh4 {[%clk 0:02:54]}  g5 {[%clk 0:02:41]} 10. exf6 {[%clk 0:02:53]}  gxh4 {[%clk 0:02:40]} 11. Ne5 {[%clk 0:02:48]}  Bb7 {[%clk 0:02:08]} 12. Nxf7 {[%clk 0:02:03]}  Kxf7 {[%clk 0:02:08]} 13. Qh5+ {[%clk 0:02:04]}  Kxf6 {[%clk 0:02:08]} 14. Ne4+ {[%clk 0:01:57]}  Kg7 {[%clk 0:02:08]} 15. Qg4+ {[%clk 0:01:46]}  Kh7 {[%clk 0:02:08]} 16. Qxe6 {[%clk 0:01:39]}  Bb4+ {[%clk 0:02:03]} 17. Kd1 {[%clk 0:01:36]}  Rf8 {[%clk 0:01:39]} 18. Rxc4 {[%clk 0:01:01]}  bxc4 {[%clk 0:01:38]} 19. Bxc4 {[%clk 0:01:01]}  Nf6 {[%clk 0:00:55]} 20. Bd3 {[%clk 0:00:47]}  Kh8 {[%clk 0:00:50]} 21. Qe5 {[%clk 0:00:30]}  Qe7 {[%clk 0:00:39]} 22. Nxf6 {[%clk 0:00:13]}  Qxf6 {[%clk 0:00:35]} 23. f4 {[%clk 0:00:13]}  Qxe5 {[%clk 0:00:33]} 24. fxe5 {[%clk 0:00:13]}  Rad8 {[%clk 0:00:33]} 0-1


[Site "https://www.chess.com"]

[Event "Titled Tuesday Blitz June 21 Early 2022"]
[White "Devaev, Alexander"]
[Black "Nilssen, Ellen Fredericia"]
[WhiteFideId "4169395"]
[BlackFideId "1441230"]
[WhiteElo "2185"]
[BlackElo "2094"]
[Result "1-0"]
[Round "02"]
[TimeControl "180+1"]
[Date "2022.06.22"]
[WhiteClock "0:00:48"]
[BlackClock "0:00:02"]

1. d4 {[%clk 0:02:59]}  Nf6 {[%clk 0:02:59]} 2. c4 {[%clk 0:02:54]}  c5 {[%clk 0:02:58]} 3. d5 {[%clk 0:02:53]}  e6 {[%clk 0:02:54]} 4. Nc3 {[%clk 0:02:53]}  exd5 {[%clk 0:02:54]} 5. cxd5 {[%clk 0:02:54]}  g6 {[%clk 0:02:54]} 6. e4 {[%clk 0:02:54]}  d6 {[%clk 0:02:54]} 7. Nf3 {[%clk 0:02:54]}  Bg7 {[%clk 0:02:54]} 8. h3 {[%clk 0:02:55]}  O-O {[%clk 0:02:52]} 9. Bd3 {[%clk 0:02:55]}  b5 {[%clk 0:02:38]} 10. Nxb5 {[%clk 0:02:55]}  Re8 {[%clk 0:02:16]} 11. O-O {[%clk 0:02:54]}  Nxe4 {[%clk 0:02:14]} 12. Qa4 {[%clk 0:02:54]}  Nf6 {[%clk 0:01:47]} 13. Bg5 {[%clk 0:02:53]}  Bd7 {[%clk 0:01:46]} 14. Rfe1 {[%clk 0:02:52]}  Rxe1+ {[%clk 0:01:38]} 15. Rxe1 {[%clk 0:02:51]}  h6 {[%clk 0:01:39]} 16. Bf4 {[%clk 0:02:35]}  Ne8 {[%clk 0:01:32]} 17. Qa3 {[%clk 0:02:30]}  Bxb5 {[%clk 0:01:11]} 18. Bxb5 {[%clk 0:02:28]}  Nd7 {[%clk 0:01:11]} 19. Bc6 {[%clk 0:02:24]}  Rb8 {[%clk 0:01:06]} 20. Qxa7 {[%clk 0:02:22]}  Ne5 {[%clk 0:00:25]} 21. Nxe5 {[%clk 0:02:05]}  dxe5 {[%clk 0:00:25]} 22. Bxe5 {[%clk 0:01:50]}  Bxe5 {[%clk 0:00:25]} 23. Rxe5 {[%clk 0:01:51]}  Nf6 {[%clk 0:00:24]} 24. b3 {[%clk 0:01:51]}  Kg7 {[%clk 0:00:22]} 25. Re7 {[%clk 0:01:46]}  Qf8 {[%clk 0:00:14]} 26. Qxc5 {[%clk 0:01:39]}  Ne4 {[%clk 0:00:13]} 27. Qd4+ {[%clk 0:01:37]}  Nf6 {[%clk 0:00:12]} 28. d6 {[%clk 0:01:38]}  Qc8 {[%clk 0:00:09]} 29. Bd5 {[%clk 0:01:28]}  Qc1+ {[%clk 0:00:07]} 30. Kh2 {[%clk 0:01:28]}  Rf8 {[%clk 0:00:07]} 31. d7 {[%clk 0:01:27]}  Qc7+ {[%clk 0:00:07]} 32. f4 {[%clk 0:01:26]}  Qd6 {[%clk 0:00:07]} 33. Qe5 {[%clk 0:01:04]}  Qxd5 {[%clk 0:00:03]} 34. Qxd5 {[%clk 0:00:55]}  Nxd5 {[%clk 0:00:04]} 35. Re8 {[%clk 0:00:56]}  Nf6 {[%clk 0:00:01]} 36. Rxf8 {[%clk 0:00:48]}  Kxf8 {[%clk 0:00:02]} 37. d8=Q+ {[%clk 0:00:48]} 1-0


[Site "https://www.chess.com"]

[Event "Titled Tuesday Blitz June 21 Early 2022"]
[White "Dwilewicz, Katarzyna"]
[Black "Fries-Nielsen, Jens Ove"]
[WhiteFideId "1148486"]
[BlackFideId "1400142"]
[WhiteElo "1907"]
[BlackElo "2506"]
[Result "0-1"]
[Round "02"]
[TimeControl "180+1"]
[Date "2022.06.22"]
[WhiteClock "0:00:01"]
[BlackClock "0:00:13"]

1. e4 {[%clk 0:03:00]}  e6 {[%clk 0:02:55]} 2. d4 {[%clk 0:02:59]}  d6 {[%clk 0:02:55]} 3. Nf3 {[%clk 0:02:58]}  Nd7 {[%clk 0:02:56]} 4. Nc3 {[%clk 0:02:58]}  Ne7 {[%clk 0:02:56]} 5. Be3 {[%clk 0:02:55]}  g6 {[%clk 0:02:56]} 6. Qd2 {[%clk 0:02:55]}  h6 {[%clk 0:02:57]} 7. O-O-O {[%clk 0:02:56]}  a6 {[%clk 0:02:57]} 8. h4 {[%clk 0:02:56]}  b5 {[%clk 0:02:57]} 9. h5 {[%clk 0:02:56]}  g5 {[%clk 0:02:56]} 10. Kb1 {[%clk 0:02:56]}  Bb7 {[%clk 0:02:55]} 11. Bd3 {[%clk 0:02:56]}  Bg7 {[%clk 0:02:55]} 12. Nh2 {[%clk 0:02:46]}  c5 {[%clk 0:02:52]} 13. dxc5 {[%clk 0:02:41]}  Nxc5 {[%clk 0:02:52]} 14. Bxc5 {[%clk 0:02:09]}  dxc5 {[%clk 0:02:51]} 15. Qe2 {[%clk 0:01:59]}  Qa5 {[%clk 0:02:45]} 16. Qe1 {[%clk 0:01:48]}  c4 {[%clk 0:02:43]} 17. Bf1 {[%clk 0:01:39]}  b4 {[%clk 0:02:42]} 18. Ne2 {[%clk 0:01:37]}  c3 {[%clk 0:02:39]} 19. Nd4 {[%clk 0:01:32]}  Qxa2+ {[%clk 0:02:34]} 20. Kxa2 {[%clk 0:01:30]}  cxb2 {[%clk 0:01:44]} 21. Bc4 {[%clk 0:01:25]}  O-O {[%clk 0:01:42]} 22. Ng4 {[%clk 0:01:22]}  a5 {[%clk 0:01:42]} 23. Kxb2 {[%clk 0:01:18]}  Rfc8 {[%clk 0:01:40]} 24. Qe2 {[%clk 0:01:14]}  a4 {[%clk 0:01:39]} 25. f3 {[%clk 0:01:07]}  Nc6 {[%clk 0:01:36]} 26. e5 {[%clk 0:01:04]}  Na5 {[%clk 0:01:36]} 27. Ba2 {[%clk 0:01:00]}  Rab8 {[%clk 0:01:30]} 28. Nxe6 {[%clk 0:00:56]}  b3 {[%clk 0:01:30]} 29. Nxg7 {[%clk 0:00:47]}  Kxg7 {[%clk 0:01:27]} 30. Bxb3 {[%clk 0:00:40]}  axb3 {[%clk 0:01:24]} 31. e6 {[%clk 0:00:33]}  Nc4+ {[%clk 0:01:16]} 32. Kb1 {[%clk 0:00:20]}  b2 {[%clk 0:00:50]} 33. Rd3 {[%clk 0:00:10]}  Ra8 {[%clk 0:00:48]} 34. c3 {[%clk 0:00:03]}  Ra1+ {[%clk 0:00:48]} 35. Kc2 {[%clk 0:00:03]}  Rxh1 {[%clk 0:00:49]} 36. Rd1 {[%clk 0:00:03]}  Rxd1 {[%clk 0:00:41]} 37. Qxd1 {[%clk 0:00:04]}  Bxf3 {[%clk 0:00:18]} 38. Qd4+ {[%clk 0:00:04]}  Kg8 {[%clk 0:00:15]} 39. Nxh6+ {[%clk 0:00:03]}  Kh7 {[%clk 0:00:15]} 40. gxf3 {[%clk 0:00:02]}  Rb8 {[%clk 0:00:14]} 41. Nxf7 {[%clk 0:00:01]}  b1=Q# {[%clk 0:00:13]} 0-1


[Site "https://www.chess.com"]

[Event "Titled Tuesday Blitz June 21 Early 2022"]
[White "Escudero Donoso, Felipe"]
[Black "Nasir, Zehn"]
[WhiteFideId "3410595"]
[BlackFideId "2613239"]
[WhiteElo "2184"]
[BlackElo "1993"]
[Result "0-1"]
[Round "02"]
[TimeControl "180+1"]
[Date "2022.06.22"]
[WhiteClock "0:00:02"]
[BlackClock "0:00:54"]

1. Nf3 {[%clk 0:03:00]}  d5 {[%clk 0:02:59]} 2. d4 {[%clk 0:03:00]}  Nf6 {[%clk 0:02:59]} 3. c4 {[%clk 0:03:01]}  c6 {[%clk 0:02:58]} 4. g3 {[%clk 0:03:01]}  g6 {[%clk 0:02:56]} 5. Bg2 {[%clk 0:03:01]}  Bg7 {[%clk 0:02:57]} 6. O-O {[%clk 0:03:00]}  O-O {[%clk 0:02:57]} 7. Ne5 {[%clk 0:03:01]}  e6 {[%clk 0:02:51]} 8. Nc3 {[%clk 0:02:59]}  Nbd7 {[%clk 0:02:51]} 9. Nxd7 {[%clk 0:02:46]}  Bxd7 {[%clk 0:02:37]} 10. e4 {[%clk 0:02:43]}  dxe4 {[%clk 0:02:35]} 11. Nxe4 {[%clk 0:02:44]}  Nxe4 {[%clk 0:02:36]} 12. Bxe4 {[%clk 0:02:45]}  Qe7 {[%clk 0:02:34]} 13. Be3 {[%clk 0:02:41]}  Rfd8 {[%clk 0:02:32]} 14. Qc2 {[%clk 0:02:36]}  Rac8 {[%clk 0:02:29]} 15. Rad1 {[%clk 0:02:35]}  e5 {[%clk 0:02:27]} 16. Rfe1 {[%clk 0:02:17]}  Bg4 {[%clk 0:02:22]} 17. f3 {[%clk 0:01:41]}  exd4 {[%clk 0:02:17]} 18. Bf2 {[%clk 0:01:23]}  Be6 {[%clk 0:02:10]} 19. f4 {[%clk 0:01:04]}  Qc5 {[%clk 0:01:55]} 20. b3 {[%clk 0:00:56]}  Bg4 {[%clk 0:01:47]} 21. Rd3 {[%clk 0:00:52]}  Bf5 {[%clk 0:01:44]} 22. Qd2 {[%clk 0:00:48]}  Bxe4 {[%clk 0:01:40]} 23. Rxe4 {[%clk 0:00:49]}  Qf5 {[%clk 0:01:40]} 24. Qe2 {[%clk 0:00:43]}  c5 {[%clk 0:01:38]} 25. g4 {[%clk 0:00:37]}  Qd7 {[%clk 0:01:35]} 26. Re7 {[%clk 0:00:38]}  Qc6 {[%clk 0:01:33]} 27. Rd1 {[%clk 0:00:12]}  Re8 {[%clk 0:01:32]} 28. Re1 {[%clk 0:00:11]}  Rxe7 {[%clk 0:01:29]} 29. Qxe7 {[%clk 0:00:12]}  Bf8 {[%clk 0:01:23]} 30. Qe2 {[%clk 0:00:09]}  Qd6 {[%clk 0:01:17]} 31. Bg3 {[%clk 0:00:09]}  d3 {[%clk 0:01:15]} 32. Qd2 {[%clk 0:00:08]}  Bg7 {[%clk 0:01:15]} 33. Bf2 {[%clk 0:00:02]}  Bd4 {[%clk 0:01:13]} 34. Kh1 {[%clk 0:00:01]}  Bxf2 {[%clk 0:01:07]} 35. Qxf2 {[%clk 0:00:01]}  d2 {[%clk 0:01:08]} 36. Rd1 {[%clk 0:00:02]}  Rd8 {[%clk 0:01:08]} 37. Kg1 {[%clk 0:00:02]}  b6 {[%clk 0:01:05]} 38. Kf1 {[%clk 0:00:02]}  Qd3+ {[%clk 0:01:05]} 39. Qe2 {[%clk 0:00:02]}  Qh3+ {[%clk 0:01:04]} 40. Kg1 {[%clk 0:00:03]}  Qc3 {[%clk 0:00:59]} 41. Qe7 {[%clk 0:00:01]}  Qd4+ {[%clk 0:00:56]} 42. Kh1 {[%clk 0:00:02]}  Qd3 {[%clk 0:00:54]} 0-1


[Site "https://www.chess.com"]

[Event "Titled Tuesday Blitz June 21 Early 2022"]
[White "Ferreira, Vitor Hugo Vieira"]
[Black "Tinmaz, Kerem"]
[WhiteFideId "2119765"]
[BlackFideId "44559151"]
[WhiteElo "2165"]
[BlackElo "1443"]
[Result "0-1"]
[Round "02"]
[TimeControl "180+1"]
[Date "2022.06.22"]
[WhiteClock "0:00:45"]
[BlackClock "0:00:14"]

1. d4 {[%clk 0:03:00]}  d5 {[%clk 0:02:59]} 2. c4 {[%clk 0:03:00]}  c6 {[%clk 0:02:58]} 3. Nf3 {[%clk 0:03:00]}  Nf6 {[%clk 0:02:58]} 4. Nc3 {[%clk 0:03:00]}  dxc4 {[%clk 0:02:58]} 5. a4 {[%clk 0:03:00]}  Bf5 {[%clk 0:02:58]} 6. e3 {[%clk 0:03:00]}  e6 {[%clk 0:02:59]} 7. Bxc4 {[%clk 0:03:00]}  Bb4 {[%clk 0:02:59]} 8. O-O {[%clk 0:03:00]}  O-O {[%clk 0:02:59]} 9. Qe2 {[%clk 0:03:00]}  Bg6 {[%clk 0:02:58]} 10. Ne5 {[%clk 0:02:59]}  Nbd7 {[%clk 0:02:57]} 11. Nxg6 {[%clk 0:02:59]}  hxg6 {[%clk 0:02:58]} 12. Rd1 {[%clk 0:02:56]}  Qc7 {[%clk 0:02:45]} 13. e4 {[%clk 0:02:56]}  Rad8 {[%clk 0:02:22]} 14. Bg5 {[%clk 0:02:54]}  e5 {[%clk 0:02:08]} 15. d5 {[%clk 0:02:47]}  Nb6 {[%clk 0:02:00]} 16. Rac1 {[%clk 0:02:20]}  Bxc3 {[%clk 0:01:42]} 17. Rxc3 {[%clk 0:02:20]}  Nxa4 {[%clk 0:01:24]} 18. Ra3 {[%clk 0:02:08]}  b5 {[%clk 0:01:14]} 19. Ba2 {[%clk 0:01:59]}  Nb6 {[%clk 0:01:00]} 20. Qf3 {[%clk 0:01:57]}  Rd6 {[%clk 0:00:53]} 21. Rc1 {[%clk 0:01:33]}  Rc8 {[%clk 0:00:41]} 22. Rac3 {[%clk 0:01:31]}  Qb7 {[%clk 0:00:35]} 23. Qg3 {[%clk 0:01:25]}  Nxe4 {[%clk 0:00:27]} 24. Qxe5 {[%clk 0:01:25]}  Nxc3 {[%clk 0:00:28]} 25. Rxc3 {[%clk 0:01:09]}  Qd7 {[%clk 0:00:19]} 26. Bf4 {[%clk 0:00:54]}  Re8 {[%clk 0:00:15]} 27. Qxd6 {[%clk 0:00:45]}  Re1# {[%clk 0:00:14]} 0-1


[Site "https://www.chess.com"]